Cogmind - Beta 14 @@@ ROGUE MODE // 2025.03.15 @ 09:30:53 Player: Cog on my mind Result: Destroyed self with Improved Ion Engine chain reaction Performance ------------- Evolutions (1) 500 Regions Visited (6) 1200 Robots Destroyed (101) 505 Value Destroyed (2692) 2692 Prototype IDs (10) 200 Alien Tech Used (0) 0 Bonus (569) 569 TOTAL SCORE: 5666 Bonus ------- High Alert Combat Kills 530 Follower Combat Kills 39 Cogmind --------- Core Integrity 0/400 Matter 300/300 Energy 236/280 System Corruption 0% Temperature Warm (153) Movement Treading (240) Ox1 Location -8/Mines Parts ------- > --- POWER (1) -------- Heavy Ion Engine > --- PROPULSION (3) --- Light Treads Light Treads > --- UTILITY (3) ------ Large Storage Unit Seismic Detector Medium Armor Plating > --- WEAPON (2) ------- Improved EM Shotgun Improved EM Shotgun > --- INVENTORY (15) --- Reinforced Ion Engine Heavy Ion Engine Light Treads Light Treads Light Treads Compact Wheel Improved Heat Sink High-capacity Storage Unit Compact Matter Pod (150) Light Armor Plating Light Armor Plating Medium Armor Plating Improved EM Shotgun Mini Grenade Launcher Mini Grenade Launcher Peak State ------------ > --- POWER ------------ Heavy Ion Engine > --- PROPULSION ------- Light Treads Light Treads Light Treads > --- UTILITY ---------- Improved Heat Sink Large Storage Unit Light Armor Plating > --- WEAPON ----------- Improved EM Shotgun Improved EM Shotgun > --- INVENTORY -------- Reinforced Ion Engine Reinforced Ion Engine Heavy Ion Engine Light Treads Light Treads Light Treads Light Treads Compact Wheel Light Armor Plating Medium Armor Plating Improved EM Shotgun Mini Grenade Launcher Mini Grenade Launcher [Rating: 19] Favorites ----------- Power Heavy Ion Engine Engine Heavy Ion Engine Power Core Light Nuclear Core Propulsion Light Treads Treads Light Treads Leg Aluminum Leg Wheel Wheel Flight Unit VTOL Module Utility Large Storage Unit Device Cooling System Storage Large Storage Unit Protection Medium Armor Plating Weapon Improved EM Shotgun Energy Gun Improved EM Shotgun Energy Cannon Light EM Pulse Cannon Ballistic Gun Assault Rifle Launcher Mini Grenade Launcher Build | -11 -10 -10 -9 -9 -9 -8 ------- Run | Yrd Mat Min Mat Min Exi Min Slots Evolved 2 | . . . 2 . . . Power . | . . . . . . . Propulsion 1 | . . . 1 . . . Utility 1 | . . . 1 . . . Weapon . | . . . . . . . Parts Attached 67 | 7 6 4 45 3 . 2 Power 6 | 1 1 . 4 . . . Engine 5 | 1 . . 4 . . . Core 1 | . 1 . . . . . Reactor . | . . . . . . . Propulsion 15 | 2 1 . 12 . . . Treads 11 | 2 1 . 8 . . . Leg 1 | . . . 1 . . . Wheel 2 | . . . 2 . . . Hover . | . . . . . . . Flight 1 | . . . 1 . . . Utility 16 | 2 2 . 11 1 . . Device 9 | 1 1 . 6 1 . . Storage 3 | 1 1 . 1 . . . Processor . | . . . . . . . Hackware . | . . . . . . . Protection 4 | . . . 4 . . . Artifact . | . . . . . . . Weapon 30 | 2 2 4 18 2 . 2 Energy Gun 11 | . . . 9 1 . 1 Energy Cannon 8 | . 2 3 3 . . . Ballistic Gun 3 | 2 . 1 . . . . Ballistic Cannon . | . . . . . . . Launcher 8 | . . . 6 1 . 1 Special Weapon . | . . . . . . . Impact Weapon . | . . . . . . . Slashing Weapon . | . . . . . . . Piercing Weapon . | . . . . . . . Special Melee Weapon . | . . . . . . . Unidentified Prototypes 1 | . . . 1 . . . Parts Lost 14 | . 2 6 5 . . 1 Power 1 | . 1 . . . . . Propulsion 5 | . 1 2 1 . . 1 Utility 3 | . . . 3 . . . Weapon 5 | . . 4 1 . . . Highest Loss Streak 5 | . 2 5 2 . . 1 To Critical Strikes 1 | . . 1 . . . . Average Slot Usage (%) 96 | . 100 97 93 100 100 100 Engine 9 | . 10 . 10 11 11 11 Core 2 | . 3 14 . . . . Treads 27 | . 28 25 23 33 33 33 Wheel 1 | . . . 4 . . . Device 13 | . 14 14 15 5 11 11 Storage 11 | . 14 14 10 11 11 11 Protection 5 | . . . 3 16 11 11 Energy Gun 10 | . . . 10 21 22 22 Energy Cannon 10 | . 22 25 9 . . . Ballistic Gun 1 | . 5 2 . . . . Peak Build Rating 19 | 7 12 12 19 18 18 18 Average Rating 14 | 5 10 11 15 17 18 17 On Entrance 11 | . 7 12 7 18 18 18 Naked Turns 10 | . . . 10 . . . Heaviest Build 44 | 14 35 35 44 44 42 42 Greatest Support 60 | 40 40 40 60 60 60 60 Greatest Overweight (x) 9 | . . 9 9 . . . Average Overweight (x) . | . . . 1 . . . Largest Inventory Capacity 15 | 8 15 15 15 15 15 15 Average Capacity 14 | 7 12 15 14 15 15 15 Most Carried 15 | . 7 5 15 15 15 15 Average Carried 9 | . 5 4 10 13 15 15 Final Capacity 15 | 8 15 15 15 15 15 15 Final Carried 15 | . 5 2 12 15 15 15 Class Distribution -------------------- 46% | Mutant 46% | Scavenger-Mutant 6% | Commander-Mutant Dominant Class ---------------- Mutant | -10/Materials Commander-Mutant | -10/Mines Mutant | -9/Materials Scavenger-Mutant | -9/Mines Scavenger-Mutant | -9/Exiles Scavenger-Mutant | -8/Mines Resources | -11 -10 -10 -9 -9 -9 -8 ----------- Run | Yrd Mat Min Mat Min Exi Min Matter Collected 1258 | 314 100 . 764 50 . 30 Remotely . | . . . . . . . Salvage Created 3836 | 108 756 185 2411 74 . 302 Parts 241 | 17 39 2 145 16 . 22 Haulers Intercepted 7 | . 2 . 5 . . . Recyclers Shooed 3 | 2 . . 1 . . . Parts Field Recycled . | . . . . . . . Retrieved Matter . | . . . . . . . Parts Self-Destructed . | . . . . . . . Prevented . | . . . . . . . Kills | -11 -10 -10 -9 -9 -9 -8 ------- Run | Yrd Mat Min Mat Min Exi Min Combat Hostiles Destroyed 85 | . 11 9 54 3 . 8 Guns 29 | . 2 5 20 . . 2 Cannons 21 | . 6 3 12 . . . AOE 30 | . 2 1 19 3 . 5 Classes Destroyed 17 | 1 5 2 7 . . 2 Worker 1 | . . . . . . 1 Builder 3 | . . . 2 1 . . Tunneler 7 | 5 . . . 2 . . Hauler 7 | . 2 . 5 . . . Recycler 3 | . 1 . 2 . . . Mechanic 1 | . . . 1 . . . Operator 1 | . 1 . . . . . Watcher 8 | . 3 . 5 . . . Swarmer 13 | . . . 7 3 . 3 Grunt 47 | . 11 . 32 . . 4 Brawler 2 | . . . 2 . . . Duelist 2 | . . . 2 . . . Protector 3 | . . . 3 . . . Sentry 8 | . . . 8 . . . Demolisher 1 | . . 1 . . . . Hunter 1 | . . . . . . 1 Assembled 8 | . . 8 . . . . Best Kill Streak 9 | 3 5 9 7 3 . 4 Combat Bots Only 9 | . 4 9 5 3 . 4 Max Kills in Single Turn 3 | 1 3 1 3 2 . 3 Gunslinging . | . . . . . . . Exploded 3 | . 2 1 3 2 . 3 Melee . | . . . . . . . Uniques/NPCs Destroyed . | . . . . . . . Combat | -11 -10 -10 -9 -9 -9 -8 -------- Run | Yrd Mat Min Mat Min Exi Min Hostile Shots Fired 301 | . 37 53 182 4 . 25 Missed 97 | . 5 11 72 1 . 8 Damage Taken 3123 | . 506 668 1639 23 . 287 Core 606 | . 76 108 317 . . 105 Absorbed by Shields . | . . . . . . . Core Remaining (%) 63 | 100 . 26 . . . . Volleys Fired 268 | 15 33 53 148 5 . 14 Largest 2 | 2 2 1 2 2 . 2 Hottest 136 | 40 112 56 136 90 . 90 Shots Fired 452 | 30 57 53 277 8 . 27 Gun 255 | 30 12 37 144 6 . 26 Cannon 174 | . 45 16 113 . . . Launcher 23 | . . . 20 2 . 1 Special . | . . . . . . . Kinetic 80 | 30 12 37 1 . . . Thermal 206 | . . . 206 . . . Explosive 23 | . . . 20 2 . 1 Electromagnetic 143 | . 45 16 50 6 . 26 Robot Hit Streak 16 | 5 7 8 16 4 . 13 Robot Miss Streak 6 | 2 1 5 6 2 . 2 Penetration Max . | . . . . . . . Secondary Targets 1 | . . . 1 . . . Max Gunslinging Chain 1 | . . . 1 . . . Shots Hit Robots 298 | 19 43 35 176 3 . 22 Core Hits 166 | 7 21 20 96 5 . 17 Critical Kills . | . . . . . . . Critical Parts Destroyed . | . . . . . . . Critical Strikes 9 | . . 1 8 . . . Burn 8 | . . . 8 . . . Corrupt 1 | . . 1 . . . . Melee Attacks . | . . . . . . . Impact . | . . . . . . . Slashing . | . . . . . . . Piercing . | . . . . . . . Sneak Attacks . | . . . . . . . Combat Hostiles . | . . . . . . . Follow-up Attacks . | . . . . . . . Damage Inflicted 8617 | 196 1286 624 5506 276 . 729 Guns 2672 | 196 93 292 1630 48 . 413 Cannons 2749 | . 916 227 1606 . . . Explosions 3196 | . 277 105 2270 228 . 316 Melee . | . . . . . . . Ramming . | . . . . . . . Kinetic 581 | 196 93 292 . . . . Thermal 2911 | . 89 105 2524 . . 193 Explosive 2751 | . 188 . 2212 228 . 123 Electromagnetic 2374 | . 916 227 770 48 . 413 Impact . | . . . . . . . Slashing . | . . . . . . . Piercing . | . . . . . . . Highest Corruption . | . . . . . . . Average Corruption . | . . . . . . . Corruption Purged . | . . . . . . . Corruption Blocked . | . . . . . . . Overload Shots . | . . . . . . . Overflow Damage 227 | . 116 . 62 46 . 3 Projectiles 58 | . 46 . 12 . . . Explosions 169 | . 70 . 50 46 . 3 Melee . | . . . . . . . Knockbacks . | . . . . . . . Impact . | . . . . . . . Kinetic . | . . . . . . . Secondary . | . . . . . . . Self-Inflicted Damage 254 | . 82 . 131 . . 41 Shots 6 | . 1 . 4 . . 1 Rammed . | . . . . . . . Targets Rammed . | . . . . . . . Kicked . | . . . . . . . Crushed . | . . . . . . . Highest Temperature 350 | . 43 8 350 66 . 150 Average Temperature 67 | . 13 8 77 32 . 64 Received Heat Transfer 1010 | . 240 89 618 . . 63 Siege Activations . | . . . . . . . Robots Corrupted 3 | . 1 . 1 . . 1 Combat Hostiles 3 | . 1 . 1 . . 1 Parts Fried 9 | . 5 . 3 . . 1 Impact Corruptions . | . . . . . . . Robots Melted 2 | . . . 2 . . . Combat Hostiles 2 | . . . 2 . . . Parts Melted 10 | . . . 9 . . 1 Heat Transferred 5977 | . 100 100 5527 . . 250 Parts Sabotaged . | . . . . . . . Parts Stolen . | . . . . . . . Parts Stripped . | . . . . . . . Power Chain Reactions 6 | . 2 1 1 . . 2 Alert | -11 -10 -10 -9 -9 -9 -8 ------- Run | Yrd Mat Min Mat Min Exi Min Peak Influence 1215 | 25 256 99 1215 560 . 225 Initial 473 | . 16 99 . 473 . . Average 319 | 11 113 82 458 446 . 116 Maximum Alert Level 4 | . 1 . 4 2 . 1 Low Security (%) 42 | 100 76 100 21 . . 90 Level 1 27 | . 23 . 28 54 . 9 Level 2 20 | . . . 29 45 . . Level 3 6 | . . . 14 . . . Level 4 2 | . . . 5 . . . Level 5 . | . . . . . . . High Security . | . . . . . . . Max Security . | . . . . . . . Sterilizations 1 | . . . 1 . . . Squads Dispatched 11 | . 2 . 9 . . . Investigation 6 | . 2 . 4 . . . Extermination . | . . . . . . . Reinforcement 2 | . . . 2 . . . Assault 3 | . . . 3 . . . Garrison . | . . . . . . . Intercept . | . . . . . . . Searches Triggered . | . . . . . . . Construction Impeded . | . . . . . . . Haulers Reinforced . | . . . . . . . Active Scanning Responses . | . . . . . . . Cargo Convoy Interrupts . | . . . . . . . Stealth | -11 -10 -10 -9 -9 -9 -8 --------- Run | Yrd Mat Min Mat Min Exi Min Distress Signals 5 | . 1 . 4 . . . Communications Jammed . | . . . . . . . Distress Signals . | . . . . . . . Times Spotted 125 | . 17 21 73 3 . 11 Peak Tracking Total 15 | . 5 15 5 3 . 3 Tactical Retreats 6 | . 2 2 1 . . 1 Traps | -11 -10 -10 -9 -9 -9 -8 ------- Run | Yrd Mat Min Mat Min Exi Min Traps Triggered 3 | . . . 3 . . . Indirectly . | . . . . . . . Trap Hack Attempts . | . . . . . . . Triggered . | . . . . . . . Disarmed . | . . . . . . . Reprogrammed . | . . . . . . . Reused . | . . . . . . . Traps Extracted . | . . . . . . . Installed . | . . . . . . . Triggered . | . . . . . . . Machines | -11 -10 -10 -9 -9 -9 -8 ---------- Run | Yrd Mat Min Mat Min Exi Min Machines Disabled 8 | . 3 . 4 1 . . Max in Single Turn 2 | . 2 . 2 1 . . Machines Repaired . | . . . . . . . Machines Dismantled . | . . . . . . . Machines Sabotaged . | . . . . . . . Overloaded Fab Kills . | . . . . . . . Hacking | -11 -10 -10 -9 -9 -9 -8 --------- Run | Yrd Mat Min Mat Min Exi Min Machines Accessed 19 | . 7 . 11 . 1 . Terminals 13 | . 5 . 8 . . . Fabricators . | . . . . . . . Repair Stations . | . . . . . . . Recycling Units 4 | . 2 . 2 . . . Scanalyzers 1 | . . . 1 . . . Garrison Access . | . . . . . . . Total Hacks 53 | . 23 . 29 . 1 . Successful 29 | . 11 . 17 . 1 . Failed 23 | . 11 . 12 . . . Catastrophic 3 | . 1 . 2 . . . Database Lockouts 1 | . 1 . . . . . Manual 37 | . 20 . 17 . . . Terminals 43 | . 18 . 25 . . . Fabricators . | . . . . . . . Repair Stations . | . . . . . . . Recycling Units 7 | . 5 . 2 . . . Scanalyzers 2 | . . . 2 . . . Garrison Access . | . . . . . . . Terminal Hacks 15 | . 6 . 8 . 1 . Record 1 | . . . . . 1 . Robot Analysis 6 | . 4 . 2 . . . Prototype ID Bank 5 | . 1 . 4 . . . Branch Access Points 1 | . . . 1 . . . Terminal Index 2 | . 1 . 1 . . . Fabricator Hacks . | . . . . . . . Repair Station Hacks . | . . . . . . . Recycling Unit Hacks . | . . . . . . . Scanalyzer 2 | . . . 2 . . . Insert Component 1 | . . . 1 . . . Analyze 1 | . . . 1 . . . Garrison Access Hacks . | . . . . . . . Unauthorized Hacks 12 | . 5 . 7 . . . Terminals 9 | . 4 . 5 . . . Track 3 | . . . 3 . . . Assimilate 1 | . 1 . . . . . Botnet 4 | . 2 . 2 . . . Operators 1 | . 1 . . . . . Fabricators . | . . . . . . . Repair Stations . | . . . . . . . Recycling Units 3 | . 1 . 2 . . . Tunnel 3 | . 1 . 2 . . . Scanalyzers . | . . . . . . . Garrison Access . | . . . . . . . Data Cores Recovered 1 | . 1 . . . . . Used . | . . . . . . . Hacking Detections 13 | . 5 . 8 . . . Full Trace Events 2 | . 1 . 1 . . . Feedback Events . | . . . . . . . Feedback Blocked . | . . . . . . . Robot Schematics Acquired . | . . . . . . . Robots Built . | . . . . . . . Authchips . | . . . . . . . Time . | . . . . . . . Total Robot Build Rating . | . . . . . . . Part Schematics Acquired 1 | . . . 1 . . . Parts Built . | . . . . . . . Authchips . | . . . . . . . Time . | . . . . . . . Total Part Build Rating . | . . . . . . . Parts Repaired . | . . . . . . . Time . | . . . . . . . Parts Recycled . | . . . . . . . Recycled Matter . | . . . . . . . Retrieved Matter . | . . . . . . . Retrieved Components . | . . . . . . . Parts Scanalyzed 1 | . . . 1 . . . Part Schematics Acquired 1 | . . . 1 . . . Parts Damaged . | . . . . . . . Bothacking | -11 -10 -10 -9 -9 -9 -8 ------------ Run | Yrd Mat Min Mat Min Exi Min Used RIF Installer . | . . . . . . . Robots Hacked . | . . . . . . . Non-combat . | . . . . . . . Combat . | . . . . . . . Robot Hacks Applied . | . . . . . . . Relay Couplers Released . | . . . . . . . Fabnet Peak Effective % . | . . . . . . . Robots Rewired . | . . . . . . . Allies Hacked . | . . . . . . . Hacks Repelled . | . . . . . . . Allies | -11 -10 -10 -9 -9 -9 -8 -------- Run | Yrd Mat Min Mat Min Exi Min Total Allies 4 | . 1 3 . . . . Largest Group 4 | . 1 4 1 . . . Highest-Rated Group 50 | . 10 50 9 . . . Highest-Rated Ally 16 | . 10 16 9 . . . Total Orders . | . . . . . . . Ally Attacks 52 | . . 52 . . . . Total Damage 400 | . . 400 . . . . Kills 5 | . . 5 . . . . Allies Corrupted . | . . . . . . . Allies Melted . | . . . . . . . Intel | -11 -10 -10 -9 -9 -9 -8 ------- Run | Yrd Mat Min Mat Min Exi Min Robot Analysis Total 6 | . 4 . 2 . . . Derelict Logs Recovered 2 | . . 1 . 1 . . Drone Launches . | . . . . . . . Drone Recoveries . | . . . . . . . Exploration | -11 -10 -10 -9 -9 -9 -8 ------------- Run | Yrd Mat Min Mat Min Exi Min Turns Passed 5825 | 172 1088 481 2535 883 308 358 Spaces Moved 2977 | 74 572 230 1193 528 192 188 Core 72 | 3 . 1 68 . . . Treads 2455 | 71 572 229 675 528 192 188 Legs 7 | . . . 7 . . . Wheels 443 | . . . 443 . . . Hover . | . . . . . . . Flight . | . . . . . . . Fastest Speed 50 | 50 160 160 50 160 160 160 Average Speed 156 | 155 160 161 152 160 160 160 Slowest Speed 500 | 160 160 500 500 160 160 160 Overloaded Moves . | . . . . . . . Propulsion Burnouts . | . . . . . . . Robots Hopped . | . . . . . . . Cave-ins Triggered . | . . . . . . . Exploration Rate (%) 59 | 5 93 57 78 93 52 38 Regions Visited 6 Branch Regions 4 Pre-discovered Areas 5 | . 1 1 2 . 1 . Known Exits Taken 1 | . . . 1 . . . Unknown Exits Taken 5 | 1 1 1 . 1 1 . Scrap Searched 2 | . . 1 . 1 . . Spaces Dug 22 | . . . 22 . . . Terrain Destroyed 256 | . 43 1 166 27 . 19 Melee . | . . . . . . . Projectile . | . . . . . . . AOE 256 | . 43 1 166 27 . 19 Terrain Rammed . | . . . . . . . Walls Destroyed . | . . . . . . . Machines Disabled . | . . . . . . . Actions | -11 -10 -10 -9 -9 -9 -8 --------- Run | Yrd Mat Min Mat Min Exi Min Total 3672 | 100 688 290 1624 557 193 220 Wait 313 | 5 68 4 201 19 . 16 Move 2971 | 73 571 229 1192 527 191 188 Hop . | . . . . . . . Pick Up 32 | . 8 . 20 3 1 . Fast Attach 20 | 7 . . 13 . . . Attach 12 | . 2 3 7 . . . Detach . | . . . . . . . Swap 35 | . 4 1 25 3 . 2 Drop 21 | . 2 . 18 . 1 . Fire 268 | 15 33 53 148 5 . 14 Melee . | . . . . . . . Ram . | . . . . . . . Kick . | . . . . . . . Crush . | . . . . . . . Escape Stasis . | . . . . . . . Rewire . | . . . . . . . Trap . | . . . . . . . Miscellaneous . | . . . . . . . Route ------- -11/Scrapyard -10/Materials (discovered 5 exits: *Mat x3 / [*Min x2]) -10/Mines -9/Materials (discovered 2 exits: [*Mat] / *Min) -9/Mines (discovered 3 exits: [*Mat x2] / *Exi) -9/Exiles -8/Mines (discovered 2 exits: [*Mat x2]) History --------- Turn | Location | Event 6 | -11/Scrapyard | Discovered new exit (range 15) 173 | -11/Scrapyard | Entered Materials 301 | -10/Materials | Build established: Mutant 576 | -10/Materials | Central database locked down 611 | -10/Materials | Discovered new exit (range 13) 696 | -10/Materials | Discovered new exit (range 6) 1020 | -10/Materials | Discovered new exit (range 11) 1060 | -10/Materials | Discovered new exit (range 7) 1174 | -10/Materials | Discovered new exit (range 9) 1261 | -10/Materials | Entered Mines 1261 | -10/Mines | Accompanied by 1 ally 1262 | -10/Mines | Met a Derelict bent on vengeance 1265 | -10/Mines | Assisted by bots powering up and referring to "LRC-V3" 1504 | -10/Mines | Learned Materials emergency access door positions 1539 | -10/Mines | Learned location of Storage (-7) 1558 | -10/Mines | Build established: Commander-Mutant 1607 | -10/Mines | Discovered new exit (range 15) 1622 | -10/Mines | Assembled infested the area 1627 | -10/Mines | Assisted by a Guerilla fighting off Assembled 1717 | -10/Mines | Core integrity fell below 50% 1719 | -10/Mines | Lost 4 allies 1742 | -10/Mines | Entered Materials 1742 | -9/Materials | Accompanied by 1 ally 1742 | -9/Materials | Evolved 2 slots: Propulsion x1, Utility x1 1760 | -9/Materials | Destroyed 9 combat bots 1771 | -9/Materials | Lost 5 parts (2n3w) 1948 | -9/Materials | Released all parts (4) 1950 | -9/Materials | Build established: Mutant 2423 | -9/Materials | Discovered new exit (range 7) 2647 | -9/Materials | Build established: Scavenger-Mutant 3141 | -9/Materials | Build established: Mutant 3342 | -9/Materials | First assault squad dispatched 3459 | -9/Materials | Core integrity fell below 50% 3810 | -9/Materials | Identified exit to Mines 4072 | -9/Materials | Build established: Scavenger-Mutant 4237 | -9/Materials | Sterilization system engaged 4237 | -9/Materials | Non-combat units ordered to evacuate 4277 | -9/Materials | Entered Mines 4352 | -9/Mines | Discovered new exit (range 16) 4521 | -9/Mines | Discovered new exit (range 9) 4650 | -9/Mines | Deemed a non-threat by the Exiles lab entrance 4921 | -9/Mines | Found a hidden stash of uninstalled traps 4986 | -9/Mines | Received a Rocket Launcher from a helpful Derelict 4989 | -9/Mines | Discovered new exit (range 3) 5076 | -9/Mines | Learned location of 2 exits from Materials 5160 | -9/Mines | Entered Exiles 5200 | -9/Exiles | Met 8R-AWN 5226 | -9/Exiles | Met EX-HEX 5290 | -9/Exiles | Met EX-DEC 5306 | -9/Exiles | Learned location of Zion (-7) 5333 | -9/Exiles | Met EX-BIN 5450 | -9/Exiles | Discovered new exit (range 14) 5468 | -9/Exiles | Entered Mines 5491 | -8/Mines | Discovered new exit (range 8) 5500 | -8/Mines | Core integrity fell below 20% 5584 | -8/Mines | Discovered new exit (range 6) 5826 | -8/Mines | Destroyed self with Improved Ion Engine chain reaction Last Messages --------------- 05525_ Med. Matter Pod melted. 05525_ K-01 Serf destroyed. 05525_ G-50 Soldier destroyed. 05527_ R-06 Scavenger collects Corrupted Aluminum Leg. 05535_ R-06 Scavenger collects Wheel. 05584_ EXIT=FOUND 05672_ S-10 Pest destroyed. 05685_ H-55 Commando destroyed. 05691_ Acquired 1 matter. 05692_ Acquired 6 matter. 05694_ Acquired 23 matter. 05705_ K-01 Serf collects debris. 05793_ G-47 Trooper destroyed. 05817_ G-47 Trooper misfires. 05817_ Destroyed Melee Analysis Suite. 05825_ Lgt. Treads destroyed. 05826_ Chain reaction triggered in Imp. Ion Engine. 05826_ Destroyed Welding Torch. Map ----- +----------------------------------------------------+ | ???????????????????????????? | | ???????????????????????????? | | ???????????????????????????? | | ???????????????????????????? | | ???????????????????????????? | | ???????????????????????????? | | ???????????????????????????? | | ???????????????????????????? | | ???????????????????????????? | | ???????????????????????????? | | ???????????????????????????? | | ???????????????????????????? | | ???????????????????????????? | | ???????????????????????????? | | ??#####????????????????????? | | ?## ##???????????????????? | | ?# ######??????????????? | | ?# #????? ???????? | | ?# #???# #??????? | | ?# ### #??? #??????? | | ?# ##?# #?? #??????? | | ?## g##??# #?? #???????? | | ??# ##???# #?? #???????? | | ??# ;????# #?# #???????? | | ??#l;????# ## #???????? | | ??#@;????# #???????? | | ??#u#???## #????????? | | ??#=#???# ##???????? | | ??#%##### ###?????? | | ??#=* #### ?? | | ??# #? | | ??######## #????? | | ?????????# ## | | ????????## ##??? | | ???###### ##?????? #####?? | | ???# # *=*##??????????????? | | ???# [%##???????????????? | | ???# * ##????????????????? | | ???## = [#????????????????? | | ???# =[ ##???????????????? | | ???## ##??????????????? | | ????## ##??????####???? | | ?????### #?????## ##??? | | ???????## #????## #### | | ????????## #???## ## | | ?????????## ##??# | | ??????????# #### | | ??????????## | | ???????????# | | ???????????######## | +----------------------------------------------------+ Best States ------------- Heat Dissipation 50 Energy Generation 14 Energy Capacity 280 Matter Stores 300 Matter Capacity 300 Sight Range 16 Terrain Scan Density 10 Armor Coverage 375 Evasion (%) 50 Recoil Reduction 3 Item Schematics ----------------- Huge Storage Unit | -9/Materials | Scanalyzed Robot Schematics ------------------ None Fabricated ------------ Nothing Alien Tech Used ----------------- None Achievements -------------- None Challenges ------------ None Game ------ Seed ArchitectSigixInterrupter Manual? 0 Play Time 00:40:26 Cumulative 373.2 hours Start 2025.03.15 @ 08:49:16 End 2025.03.15 @ 09:30:53 Sessions 1 Manual Loads 0 Difficulty Rogue Special Mode None Game No. 84 Rogue 84 Adventurer 0 Explorer 0 Win Type - Total 24 Types 13/1/6/1/0/0/1/1/1 Lore% 84 Gallery% 83 Achievement% 79 Wizard Run 0 Options --------- Layout 1 ASCII 0 Keyboard 0 Movement Mouse Keybinds 0 Fullscreen 1 Font 24/Smallcaps Map View 50x35 Zoom Use 0% Tactical HUD 1 Map Filters NONE Filters NONE Steam 1 RUN: cca8748d-a60e-4478-85c9-d710e928ccdd